fUSD/lending_fUSD_20260217
["ID","MTS","AMOUNT","RATE_DAILY","PERIOD"]
[405837463,1771350647111,-1608.12,0.00013698,2]
[405837464,1771350647120,-1608.12,0.00013698,2]
[405837465,1771350647130,-1608.12,0.00013698,2]
[405837466,1771350647139,-1608.12,0.00013698,2]
[405837467,1771350647149,-1608.12,0.00013698,2]
[405837468,1771350647158,-1608.12,0.00013698,2]
[405837469,1771350647167,-500.0,0.00013698,2]
[405837470,1771350647177,-500.0,0.00013698,2]
[405837471,1771350647186,-500.0,0.00013698,2]
[405837472,1771350647195,-500.0,0.00013698,2]
[405837473,1771350647206,-586.00467181,0.00013698,2]
[405837474,1771350647215,-500.0,0.00013698,2]
[405837475,1771350647224,-500.0,0.00013698,2]
[405837476,1771350647233,-500.0,0.00013698,2]
[405837477,1771350647242,-500.0,0.00013698,2]
[405837478,1771350647252,-463.4906551,0.00013698,2]
[405837479,1771350647261,-500.0,0.00013698,2]
[405837480,1771350647270,-500.0,0.00013698,2]
[405837481,1771350647279,-500.0,0.00013698,2]
[405837482,1771350647289,-500.0,0.00013698,2]
[405837483,1771350647298,-500.0,0.00013698,2]
[405837484,1771350647308,-321.35543779,0.00013698,2]
[405837485,1771350647317,-500.0,0.00013698,2]
[405837486,1771350647326,-500.0,0.00013698,2]
[405837487,1771350647336,-509.4313423,0.00013698,2]
[405837488,1771350647345,-1013.23,0.00013698,2]
[405837489,1771350647354,-1013.23,0.00013698,2]
[405837490,1771350647363,-1013.23,0.00013698,2]
[405837491,1771350647372,-1013.23,0.00013698,2]
[405837492,1771350647382,-1013.23,0.00013698,2]
[405837493,1771350647390,-1013.23,0.00013698,2]
[405837494,1771350647399,-1013.23,0.00013698,2]
[405837495,1771350647408,-1013.23,0.00013698,2]
[405837496,1771350647417,-1013.23,0.00013698,2]
[405837497,1771350647426,-1013.23,0.00013698,2]
[405837498,1771350647436,-1013.23,0.00013698,2]
[405837499,1771350647446,-1013.23,0.00013698,2]
[405837500,1771350647455,-1013.23,0.00013698,2]
[405837501,1771350647464,-1013.23,0.00013698,2]
[405837502,1771350647473,-1013.23,0.00013698,2]
[405837503,1771350647482,-1013.23,0.00013698,2]
[405837504,1771350647491,-1013.23,0.00013698,2]
[405837505,1771350647500,-1013.23,0.00013698,2]
[405837506,1771350647509,-1013.23,0.00013698,2]
[405837507,1771350647518,-1013.23,0.00013698,2]
[405837508,1771350647527,-1013.23,0.00013698,2]
[405837509,1771350647536,-1013.23,0.00013698,2]
[405837510,1771350647545,-1013.23,0.00013698,2]
[405837511,1771350647554,-1013.32589873,0.00013698,2]
[405837512,1771350647563,-500.0,0.00013698,2]
[405837513,1771350647572,-536.56841648,0.00013698,2]
[405837514,1771350647581,-712.99,0.00013699,2]
[405837515,1771350647591,-3936.54,0.00013699,2]
[405837516,1771350647600,-500.0,0.00013699,2]
[405837517,1771350647609,-151.02878078,0.00013699,2]
[405837518,1771350647619,-406.7,0.000137,2]
[405837519,1771350647630,-406.7,0.000137,2]
[405837520,1771350647639,-406.7,0.000137,2]
[405837521,1771350647652,-406.7,0.000137,2]
[405837522,1771350647662,-406.7,0.000137,2]
[405837523,1771350647671,-41446.46724243,0.00013773,2]
[405837524,1771350647681,-503.8182606,0.00013816,2]
[405837525,1771350647691,-2000.0,0.00013816,2]
[405837526,1771350647700,-2000.0,0.00013816,2]
[405837527,1771350647710,-2000.0,0.00013816,2]
[405837528,1771350647721,-2000.0,0.00013816,2]
[405837529,1771350647732,-226.6191256,0.00013816,2]
[405837530,1771350647742,-2000.0,0.00013816,2]
[405837531,1771350647751,-583.69347785,0.00013862,2]
[405837532,1771350647761,-500.0,0.00013873,2]
[405837533,1771350647771,-500.0,0.00013873,2]
[405837534,1771350647782,-500.0,0.00013873,2]
[405837535,1771350647795,-163.87964352,0.00013873,2]
[405837536,1771350647805,-500.0,0.00013873,2]
[405837537,1771350647815,-500.0,0.00013873,2]
[405837538,1771350647827,-162.40112722,0.00013873,2]
[405837539,1771350647836,-500.0,0.00013873,2]
[405837540,1771350647846,-500.0,0.00013873,2]
[405837541,1771350647856,-500.0,0.00013873,2]
[405837542,1771350647867,-500.0,0.00013873,2]
[405837543,1771350647878,-501.23450591,0.00013873,2]
[405837544,1771350647889,-505.14943602,0.00013873,2]
[405837545,1771350647899,-500.0,0.00013873,2]
[405837546,1771350647910,-436.04334629,0.00013873,2]
[405837547,1771350647921,-501.14207764,0.00013873,2]
[405837548,1771350647932,-160.29464371,0.00013873,2]
[405837549,1771350647943,-514.27467488,0.00013873,2]
[405837550,1771350647953,-500.93096914,0.00013873,2]
[405837551,1771350647964,-500.0,0.00013873,2]
[405837552,1771350647973,-160.44342054,0.00013873,2]
[405837553,1771350647984,-500.0,0.00013873,2]
[405837554,1771350647994,-500.0,0.00013873,2]
[405837555,1771350648004,-500.0,0.00013873,2]
[405837556,1771350648015,-500.0,0.00013873,2]
[405837557,1771350648026,-335.00019172,0.00013873,2]
[405837558,1771350648035,-500.0,0.00013873,2]
[405837559,1771350648047,-161.95965132,0.00013873,2]
[405837560,1771350648057,-500.0,0.00013873,2]
[405837561,1771350648067,-170.20434449,0.00013873,2]
[405837562,1771350648077,-500.0,0.00013873,2]
[405837563,1771350648087,-500.29634492,0.00013873,2]
[405837564,1771350648097,-500.0,0.00013873,2]
[405837565,1771350648106,-523.64780308,0.00013873,2]
[405837566,1771350648115,-161.87499248,0.00013873,2]
[405837567,1771350648125,-500.0,0.00013873,2]
[405837568,1771350648134,-500.0,0.00013873,2]
[405837569,1771350648143,-500.0,0.00013873,2]
[405837570,1771350648153,-500.0,0.00013873,2]
[405837571,1771350648163,-161.02829907,0.00013873,2]
[405837572,1771350648172,-525.66819458,0.00013873,2]
[405837573,1771350648182,-500.0,0.00013873,2]
[405837574,1771350648192,-500.0,0.00013873,2]
[405837575,1771350648202,-501.43225284,0.00013873,2]
[405837576,1771350648211,-503.17452108,0.00013873,2]
[405837577,1771350648221,-500.0,0.00013873,2]
[405837578,1771350648230,-500.0,0.00013873,2]
[405837579,1771350648240,-597.93872342,0.00013873,2]
[405837580,1771350648249,-186.11515271,0.00013873,2]
[405837581,1771350648259,-550.905089,0.00013873,2]
[405837582,1771350648269,-500.0,0.00013873,2]
[405837583,1771350648278,-500.0,0.00013873,2]
[405837584,1771350648288,-500.0,0.00013873,2]
[405837585,1771350648298,-500.0,0.00013873,2]
[405837586,1771350648308,-285.23122629,0.00013873,2]
[405837587,1771350648317,-500.0,0.00013873,2]
[405837588,1771350648327,-500.0,0.00013873,2]
[405837589,1771350648336,-569.45122683,0.00013873,2]
[405837590,1771350648346,-497.85,0.00013958,2]
[405837591,1771350648355,-594.05284132,0.00013973,2]
[405837592,1771350648364,-858.24,0.00013999,2]
[405837593,1771350648373,-1608.12,0.00013999,2]
[405837594,1771350648383,-12649.0,0.00014027,2]
[405837595,1771350648393,-3815.0,0.00014031,2]
[405837596,1771350648402,-320.0,0.00014088,2]
[405837597,1771350648412,-2500.0,0.00014364,2]
[405837598,1771350648421,-1464.93718194,0.00014364,2]
[405837599,1771350648431,-1506.4295813,0.00014364,2]
[405837600,1771350648440,-2238.87048767,0.00014364,2]
[405837601,1771350648450,-2500.0,0.00014364,2]
[405837602,1771350648459,-1000.0,0.00014421,2]
[405837603,1771350648469,-504.64635869,0.00014421,2]
[405837604,1771350648479,-504.09468333,0.00014421,2]
[405837605,1771350648488,-1009.85751715,0.00014421,2]
[405837606,1771350648497,-1000.0,0.00014421,2]
[405837607,1771350648507,-565.44208777,0.00014421,2]
[405837608,1771350648516,-1000.0,0.00014421,2]
[405837609,1771350648526,-1009.6821238,0.00014421,2]
[405837610,1771350648535,-1000.0,0.00014421,2]
[405837611,1771350648548,-1000.0,0.00014421,2]
[405837612,1771350648558,-1001.35605949,0.00014421,2]
[405837613,1771350648568,-502.22718587,0.00014421,2]
[405837614,1771350648577,-1000.0,0.00014421,2]
[405837615,1771350648587,-1000.0,0.00014421,2]
[405837616,1771350648597,-1000.0,0.00014421,2]
[405837617,1771350648607,-1000.0,0.00014421,2]
[405837618,1771350648616,-1000.0,0.00014421,2]
[405837619,1771350648625,-1000.0,0.00014421,2]
[405837620,1771350648635,-1000.0,0.00014421,2]
[405837621,1771350648645,-502.68727614,0.00014421,2]
[405837622,1771350648654,-1000.0,0.00014421,2]
[405837623,1771350648663,-1002.86775924,0.00014421,2]
[405837624,1771350648672,-502.80271569,0.00014421,2]
[405837625,1771350648682,-1000.0,0.00014421,2]
[405837626,1771350648691,-1000.0,0.00014421,2]
[405837627,1771350648701,-1000.0,0.00014421,2]
[405837628,1771350648711,-1000.0,0.00014421,2]
[405837629,1771350648721,-1000.0,0.00014421,2]
[405837630,1771350648730,-1000.0,0.00014421,2]
[405837631,1771350648740,-895.81638304,0.00014421,2]
[405837632,1771350648749,-1000.0,0.00014421,2]
[405837633,1771350648758,-840.90433578,0.000148,2]
[405837634,1771350648768,-438.65,0.00014846,2]
[405837635,1771350648778,-41446.46724243,0.00014848,2]
[405837636,1771350648788,-528.16354372,0.000149,2]
[405837637,1771350648799,-3000.0,0.00014912,2]
[405837638,1771350648809,-2453.91707801,0.00014912,2]
[405837639,1771350648818,-154574.4634589,0.00014953,2]
[405837640,1771350648827,-858.24,0.00014968,2]
[405837641,1771350648836,-1608.12,0.00014968,2]
[405837642,1771350648846,-1500.0,0.00014968,2]
[405837643,1771350648855,-1500.0,0.00014968,2]
[405837644,1771350648866,-504.47861685,0.00014968,2]
[405837645,1771350648875,-1500.0,0.00014968,2]
[405837646,1771350648885,-1512.37454404,0.00014968,2]
[405837647,1771350648895,-1000.0,0.00014968,2]
[405837648,1771350648905,-1500.0,0.00014968,2]
[405837649,1771350648914,-715.83370402,0.00014968,2]
[405837650,1771350648924,-1597.03636758,0.00014968,2]
[405837651,1771350648933,-1097.87159044,0.00014968,2]
[405837652,1771350648943,-1000.0,0.00014968,2]
[405837653,1771350648953,-1500.0,0.00014968,2]
[405837654,1771350648963,-395.07222913,0.00014968,2]
[405837655,1771350648972,-1500.0,0.00014968,2]
[405837656,1771350648981,-1500.0,0.00014968,2]
[405837657,1771350648991,-1500.0,0.00014968,2]
[405837658,1771350649001,-1500.0,0.00014968,2]
[405837659,1771350649011,-1501.26419244,0.00014968,2]
[405837660,1771350649020,-1500.0,0.00014968,2]
[405837661,1771350649030,-250.0,0.00015,2]
[405837662,1771350649039,-463723.3903767,0.00015047,2]
[405837663,1771350649048,-155.0,0.00015067,2]
[405837664,1771350649059,-3431.0,0.0001543,2]
[405837665,1771350649069,-3500.0,0.0001546,2]
[405837666,1771350649079,-620.78233815,0.00015516,2]
[405837667,1771350649088,-2000.0,0.00015516,2]
[405837668,1771350649098,-2000.0,0.00015516,2]
[405837669,1771350649107,-2000.0,0.00015516,2]
[405837670,1771350649118,-386.21895781,0.00015516,2]
[405837671,1771350649128,-2000.0,0.00015516,2]
[405837672,1771350649138,-1008.47777759,0.00015516,2]
[405837673,1771350649147,-2000.0,0.00015516,2]
[405837674,1771350649157,-1219.64567907,0.00015516,2]
[405837675,1771350649167,-2000.0,0.00015516,2]
[405837676,1771350649177,-230.75,0.00015629,2]
[405837677,1771350649187,-481.75678796,0.00015648,2]
[405837678,1771350649196,-404.497183,0.00015675,7]
[405837679,1771350649206,-12274.652251,0.00015861,7]
[405837680,1771350649216,-497.85,0.00015882,2]
[405837681,1771350649225,-41446.46724243,0.00015924,2]
[405837682,1771350649236,-5000.0,0.0001596,2]
[405837683,1771350649252,-173.57638878,0.00016,3]
[405837684,1771350649262,-1494.73225771,0.00016008,2]
[405837685,1771350649271,-4522.0326709,0.00016019,2]
[405837686,1771350649281,-5814.0420054,0.00016019,2]
[405837687,1771350649291,-960.3517219,0.00016064,2]
[405837688,1771350649300,-1787.66016397,0.00016064,2]
[405837689,1771350649314,-1007.7222609,0.00016064,2]
[405837690,1771350649324,-2457.49810709,0.00016064,2]
[405837691,1771350649334,-1510.33829166,0.00016064,2]
[405837692,1771350649343,-2500.0,0.00016064,2]
[405837693,1771350649353,-153.0,0.0001608,3]
[405837694,1771350649363,-2000.0,0.00016082,2]
[405837695,1771350649372,-173.0767049,0.00016084,2]
[405837696,1771350649382,-150.0,0.000162,2]
[405837697,1771350649392,-1000.0,0.00016277,7]
[405837698,1771350649401,-500.0,0.00016356,2]
[405837699,1771350649412,-500.0,0.00016356,2]
[405837700,1771350649421,-150.0,0.00016425,2]
[405837701,1771350649431,-2659.7,0.00016438,2]
[405837702,1771350649440,-887.51,0.00016438,2]
[405837703,1771350649450,-151.02975848,0.00016438,2]
[405837704,1771350649459,-2751.70990089,0.00016482,2]
[405837705,1771350649468,-2000.0,0.000165,2]
[405837706,1771350649479,-154574.4634589,0.00016571,2]
[405837707,1771350649489,-2356.0,0.00016611,2]
[405837708,1771350649500,-3000.0,0.00016612,2]
[405837709,1771350649510,-150.0,0.0001665,2]
[405837710,1771350649520,-151.0,0.00016708,2]
[405837711,1771350649530,-463723.3903767,0.00016711,2]
[405837712,1771350649540,-450.39,0.00016773,2]
[405837713,1771350649551,-150.0,0.00016875,2]
[405837714,1771350649564,-1000.0,0.00016877,2]
[405837715,1771350649574,-1000.0,0.00016897,2]
[405837716,1771350649585,-1000.0,0.00016938,2]
[405837717,1771350649595,-1000.0,0.00016969,2]
[405837718,1771350649604,-353.0,0.00016988,2]
[405837719,1771350649615,-41446.46724243,0.00016999,2]
[405837720,1771350649625,-353.0,0.00016999,2]
[405837721,1771350649636,-173.57638878,0.00017,7]
[405837722,1771350649646,-300.0,0.00017,2]
[405837723,1771350649656,-2000.0,0.00017,2]
[405837724,1771350649666,-1000.0,0.00017005,2]
[405837725,1771350649675,-1000.0,0.00017033,2]
[405837726,1771350649685,-150.0,0.00017035,2]
[405837727,1771350649695,-243.7,0.00017046,2]
[405837728,1771350649705,-353.0,0.0001705,2]
[405837729,1771350649716,-2356.0,0.00017051,2]
[405837730,1771350649727,-1000.0,0.00017055,2]
[405837731,1771350649738,-1000.0,0.00017055,2]
[405837732,1771350649747,-1000.0,0.0001706,2]
[405837733,1771350649758,-1000.0,0.0001706,2]
[405837734,1771350649768,-243.7,0.00017092,2]
[405837735,1771350649778,-1000.0,0.00017093,2]
[405837736,1771350649790,-500.0,0.00017099,2]
[405837737,1771350649800,-500.0,0.00017099,2]
[405837738,1771350649810,-500.0,0.00017099,2]
[405837739,1771350649821,-500.0,0.00017099,2]
[405837740,1771350649831,-500.0,0.00017099,2]
[405837741,1771350649843,-500.0,0.00017099,2]
[405837742,1771350649853,-500.0,0.00017099,2]
[405837743,1771350649864,-500.0,0.00017099,2]
[405837744,1771350650095,-500.0,0.00017099,2]
[405837745,1771350650107,-500.0,0.00017099,2]
[405837746,1771350650118,-500.0,0.00017099,2]
[405837747,1771350650128,-500.0,0.00017099,2]
[405837748,1771350650137,-500.0,0.00017099,2]
[405837749,1771350650148,-500.0,0.00017099,2]
[405837750,1771350650157,-500.0,0.00017099,2]
[405837751,1771350650167,-500.0,0.00017099,2]
[405837752,1771350650177,-500.0,0.00017099,2]
[405837753,1771350650186,-500.0,0.00017099,2]
[405837754,1771350650195,-500.0,0.00017099,2]
[405837755,1771350650204,-500.0,0.00017099,2]
[405837756,1771350650214,-151.0,0.00017099,2]
[405837757,1771350650224,-156.587,0.00017099,2]
[405837758,1771350650243,-162.380719,0.00017099,2]
[405837759,1771350650258,-159.19814613,0.00017099,2]
[405837760,1771350650268,-277.35679052,0.00017099,2]
[405837761,1771350650277,-150.0,0.000171,2]
[405837762,1771350650286,-2356.0,0.00017108,2]
[405837763,1771350650295,-205.74726589,0.0001711,3]
[405837764,1771350650306,-353.0,0.00017113,2]
[405837765,1771350650325,-150.0,0.0001713,2]
[405837766,1771350650334,-150.0,0.00017137,2]
[405837767,1771350650344,-243.69732778,0.00017139,2]
[405837768,1771350650353,-473.31058807,0.00017157,2]
[405837769,1771350650362,-1088.37215301,0.00017157,2]
[405837770,1771350650372,-1740.67806815,0.0001716,2]
[405837771,1771350650381,-1000.0,0.00017162,2]
[405837772,1771350650391,-1000.0,0.00017177,2]
[405837773,1771350650400,-150.0,0.0001718,2]
[405837774,1771350650410,-1000.0,0.00017185,2]
[405837775,1771350650425,-150.0,0.00017192,2]
[405837776,1771350650434,-150.0,0.00017197,2]
[405837777,1771350650443,-1000.0,0.00017214,2]
[405837778,1771350650454,-150.0,0.00017223,2]
[405837779,1771350650464,-1000.0,0.00017241,2]
[405837780,1771350650473,-150.0,0.00017247,2]
[405837781,1771350650482,-150.0,0.00017256,2]
[405837782,1771350650492,-1000.0,0.0001727,2]
[405837783,1771350650501,-1000.0,0.000173,2]
[405837784,1771350650511,-250.53819001,0.00017301,2]
[405837785,1771350650520,-150.0,0.00017309,2]
[405837786,1771350650529,-353.0,0.00017323,2]
[405837787,1771350650542,-150.0,0.00017325,2]
[405837788,1771350650551,-1000.0,0.00017365,2]
[405837789,1771350650562,-1000.0,0.00017381,2]
[405837790,1771350650571,-1000.0,0.00017382,2]
[405837791,1771350650581,-164.59253294,0.00017392,2]
[405837792,1771350650590,-150.0,0.00017403,2]
[405837793,1771350650600,-350.0,0.00017403,2]
[405837794,1771350650610,-1000.0,0.00017411,2]
[405837795,1771350650619,-350.0,0.00017413,3]
[405837796,1771350650629,-1000.0,0.00017414,2]
[405837797,1771350650638,-1000.0,0.00017421,2]
[405837798,1771350650648,-150.0,0.00017422,2]
[405837799,1771350650657,-1000.0,0.00017423,2]
[405837800,1771350650667,-1000.0,0.00017424,2]
[405837801,1771350650676,-150.0,0.00017435,2]
[405837802,1771350650686,-1000.0,0.00017441,2]
[405837803,1771350650695,-2000.0,0.00017452,7]
[405837804,1771350650705,-1136.19827536,0.00017469,2]
[405837805,1771350650715,-1000.0,0.00017475,2]
[405837806,1771350650725,-150.0,0.00017479,2]
[405837807,1771350650734,-150.0,0.00017491,2]
[405837808,1771350650744,-1000.0,0.00017493,2]
[405837809,1771350650753,-1000.0,0.00017494,2]
[405837810,1771350650763,-2262.0,0.000175,2]
[405837811,1771350650772,-1000.0,0.00017506,2]
[405837812,1771350650783,-1000.0,0.00017509,2]
[405837813,1771350650796,-150.0,0.00017521,2]
[405837814,1771350650806,-1000.0,0.00017536,2]
[405837815,1771350650815,-150.0,0.0001755,2]
[405837816,1771350650827,-1000.0,0.0001755,2]
[405837817,1771350650837,-1000.0,0.00017555,2]
[405837818,1771350650846,-1000.0,0.0001757,2]
[405837819,1771350650855,-151.51888634,0.00017575,2]
[405837820,1771350650865,-1000.0,0.00017595,2]
[405837821,1771350650875,-1000.0,0.00017599,2]
[405837822,1771350650884,-1000.0,0.00017602,2]
[405837823,1771350650893,-1000.0,0.00017607,2]
[405837824,1771350650903,-1000.0,0.00017613,2]
[405837825,1771350650912,-1000.0,0.00017615,2]
[405837826,1771350650922,-189.36637923,0.00017626,2]
[405837827,1771350650931,-1000.0,0.00017631,2]
[405837828,1771350650941,-858.24,0.00017639,2]
[405837829,1771350650950,-1608.12,0.00017639,2]
[405837830,1771350650959,-1139.66761032,0.0001764,2]
[405837831,1771350650969,-10536.08312245,0.0001764,2]
[405837832,1771350650978,-1139.41576218,0.0001764,2]
[405837833,1771350650987,-1117.3058239,0.0001764,2]
[405837834,1771350650997,-1063.31543486,0.0001764,2]
[405837835,1771350651007,-1089.22524559,0.0001764,2]
[405837836,1771350651016,-1077.66651551,0.0001764,2]
[405837837,1771350651025,-1084.48979803,0.0001764,2]
[405837838,1771350651035,-1138.91165554,0.0001764,2]
[405837839,1771350651044,-1085.472184,0.0001764,2]
[405837840,1771350651053,-1043.82355437,0.0001764,2]
[405837841,1771350651066,-1067.1733559,0.0001764,2]
[405837842,1771350651075,-1089.17281135,0.0001764,2]
[405837843,1771350651085,-1133.18201094,0.0001764,2]
[405837844,1771350651094,-1082.50815681,0.0001764,2]
[405837845,1771350651104,-1030.36924985,0.0001764,2]
[405837846,1771350651113,-1118.09017792,0.0001764,2]
[405837847,1771350651123,-1082.37219065,0.0001764,2]
[405837848,1771350651132,-1000.0,0.00017643,2]
[405837849,1771350651142,-287.61899177,0.00017647,2]
[405837850,1771350651151,-1000.0,0.00017648,2]
[405837851,1771350651161,-1000.0,0.00017652,2]
[405837852,1771350651170,-1000.0,0.00017662,2]
[405837853,1771350651179,-150.0,0.00017677,2]
[405837854,1771350651189,-353.0,0.00017677,2]
[405837855,1771350651198,-1000.0,0.00017678,2]
[405837856,1771350651208,-1000.0,0.00017687,2]
[405837857,1771350651219,-1000.0,0.00017689,2]
[405837858,1771350651228,-1000.0,0.00017693,2]
[405837859,1771350651238,-353.0,0.00017693,2]
[405837860,1771350651248,-1000.0,0.0001772,2]
[405837861,1771350651257,-1000.0,0.00017723,2]
[405837862,1771350651267,-500.0,0.00017726,7]
[405837863,1771350651277,-1000.0,0.00017737,2]
[405837864,1771350651286,-1000.0,0.00017737,2]
[405837865,1771350651296,-1000.0,0.00017737,2]
[405837866,1771350651305,-1000.0,0.00017737,2]
[405837867,1771350651317,-1000.0,0.00017737,2]
[405837868,1771350651327,-1000.0,0.00017737,2]
[405837869,1771350651336,-1000.0,0.00017737,2]
[405837870,1771350651345,-1000.0,0.00017737,2]
[405837871,1771350651354,-1000.0,0.00017737,2]
[405837872,1771350651364,-1000.0,0.00017758,2]
[405837873,1771350651374,-1000.0,0.00017759,2]
[405837874,1771350651384,-1000.0,0.00017763,2]
[405837875,1771350651393,-150.0,0.00017775,2]
[405837876,1771350651403,-192.29,0.00017777,2]
[405837877,1771350651414,-189.18339057,0.00017777,2]
[405837878,1771350651424,-353.0,0.00017779,2]
[405837879,1771350651434,-1000.0,0.00017791,2]
[405837880,1771350651444,-1000.0,0.00017795,2]
[405837881,1771350651454,-150.0,0.00017797,2]
[405837882,1771350651464,-189.36637923,0.00017801,2]
[405837883,1771350651473,-192.29,0.00017805,2]
[405837884,1771350651483,-444.64,0.00017808,2]
[405837885,1771350651493,-150.0,0.00017808,2]
[405837886,1771350651502,-500.0,0.00017808,2]
[405837887,1771350651512,-500.0,0.00017808,2]
[405837888,1771350651521,-500.0,0.00017808,2]
[405837889,1771350651531,-500.0,0.00017808,2]
[405837890,1771350651540,-500.0,0.00017808,2]
[405837891,1771350651549,-500.0,0.00017808,2]
[405837892,1771350651563,-500.0,0.00017808,2]
[405837893,1771350651572,-261.71506832,0.00017808,2]
[405837894,1771350651582,-500.0,0.00017808,2]
[405837895,1771350651591,-500.0,0.00017808,2]
[405837896,1771350651601,-500.0,0.00017808,2]
[405837897,1771350651610,-500.0,0.00017808,2]
[405837898,1771350651621,-500.0,0.00017808,2]
[405837899,1771350651631,-500.0,0.00017808,2]
[405837900,1771350651640,-500.0,0.00017808,2]
[405837901,1771350651649,-500.0,0.00017808,2]
[405837902,1771350651659,-500.0,0.00017808,2]
[405837903,1771350651669,-500.0,0.00017808,2]
[405837904,1771350651678,-315.44682578,0.00017808,2]
[405837905,1771350652354,-184.55317422,0.00017808,2]
[405837906,1771350652363,-383.20054783,0.00017808,2]
[405837907,1771350652373,-250.0,0.00017808,20]
[405837908,1771350652382,-250.0,0.00017808,20]
[405837909,1771350652391,-250.0,0.00017808,20]
[405837910,1771350652400,-250.0,0.00017808,20]
[405837911,1771350652408,-250.0,0.00017808,20]
[405837912,1771350652417,-250.0,0.00017808,20]
[405837913,1771350652429,-94.85259983,0.00017808,20]
[405837914,1771350652440,-155.14740017,0.00017808,20]
[405837915,1771350652450,-187.87659983,0.00017808,20]
[405837916,1771350652462,-62.12340017,0.00017808,20]
[405837917,1771350652471,-250.0,0.00017808,20]
[405837918,1771350652479,-250.0,0.00017808,20]
[405837919,1771350652488,-250.0,0.00017808,20]
[405837920,1771350652497,-250.0,0.00017808,20]
[405837921,1771350652506,-250.0,0.00017808,20]
[405837922,1771350652515,-250.0,0.00017808,20]
[405837923,1771350652524,-250.0,0.00017808,20]
[405837924,1771350652533,-250.0,0.00017808,20]
[405837925,1771350652542,-250.0,0.00017808,20]
[405837926,1771350652553,-4.08659983,0.00017808,20]
[405837927,1771350652574,-245.91340017,0.00017808,20]
[405837928,1771350652584,-250.0,0.00017808,20]
[405837929,1771350652595,-250.0,0.00017808,20]
[405837930,1771350652605,-250.0,0.00017808,20]
[405837931,1771350652614,-250.0,0.00017808,20]
[405837932,1771350652623,-250.0,0.00017808,20]
[405837933,1771350652633,-250.0,0.00017808,20]
[405837934,1771350652642,-250.0,0.00017808,20]
[405837935,1771350652651,-250.0,0.00017808,20]
[405837936,1771350652660,-250.0,0.00017808,20]
[405837937,1771350652670,-250.0,0.00017808,20]
[405837938,1771350652679,-250.0,0.00017808,20]
[405837939,1771350652688,-250.0,0.00017808,20]
[405837940,1771350652697,-250.0,0.00017808,20]
[405837941,1771350652707,-250.0,0.00017808,20]
[405837942,1771350652715,-250.0,0.00017808,20]
[405837943,1771350652724,-250.0,0.00017808,20]
[405837944,1771350652733,-250.0,0.00017808,20]
[405837945,1771350652743,-250.0,0.00017808,20]
[405837946,1771350652751,-352.041673,0.00017808,20]
[405837947,1771350652760,-800.0,0.00017808,2]
[405837948,1771350652769,-365.743138,0.00017808,2]
[405837949,1771350652778,-365.743138,0.00017808,2]
[405837950,1771350652791,-365.743138,0.00017808,2]
[405837951,1771350652801,-365.743138,0.00017808,2]
[405837952,1771350652810,-150.0,0.00017811,2]
[405837953,1771350652820,-1000.0,0.00017815,2]
[405837954,1771350652831,-276.59,0.00017819,2]
[405837955,1771350652840,-2000.0,0.0001782,2]
[405837956,1771350652850,-2000.0,0.0001782,2]
[405837957,1771350652861,-2000.0,0.0001782,2]
[405837958,1771350652870,-2000.0,0.0001782,2]
[405837959,1771350652879,-1000.0,0.00017825,2]
[405837960,1771350652889,-150.0,0.00017825,2]
[405837961,1771350652899,-150.0,0.00017829,2]
[405837962,1771350652908,-2497.6923037,0.0001783,2]